[Event "Titled Tuesday Blitz January 11 2022"]
[White "Jobava, Baadur"]
[Black "Osmak, Yuliia"]
[WhiteFideId "13601520"]
[BlackFideId "14101602"]
[WhiteElo "2617"]
[BlackElo "2302"]
[Result "1-0"]
[Round "01"]
[TimeControl "180+1"]
[Date "2022.01.11"]
[WhiteClock "0:00:18"]
[BlackClock "0:00:01"]

1. d4 {[%clk 0:02:55]}  Nf6 {[%clk 0:02:18]} 2. Nc3 {[%clk 0:02:51]}  d5 {[%clk 0:02:17]} 3. Bf4 {[%clk 0:02:50]}  a6 {[%clk 0:02:13]} 4. e3 {[%clk 0:02:49]}  c5 {[%clk 0:02:10]} 5. a3 {[%clk 0:02:49]}  Nc6 {[%clk 0:02:06]} 6. h3 {[%clk 0:02:46]}  cxd4 {[%clk 0:02:05]} 7. exd4 {[%clk 0:02:46]}  e6 {[%clk 0:02:02]} 8. Nf3 {[%clk 0:02:44]}  Bd6 {[%clk 0:01:56]} 9. Bxd6 {[%clk 0:02:44]}  Qxd6 {[%clk 0:01:57]} 10. Bd3 {[%clk 0:02:45]}  O-O {[%clk 0:01:54]} 11. O-O {[%clk 0:02:45]}  Bd7 {[%clk 0:01:43]} 12. Re1 {[%clk 0:02:44]}  Rac8 {[%clk 0:01:40]} 13. Qd2 {[%clk 0:02:41]}  b5 {[%clk 0:01:36]} 14. Re3 {[%clk 0:02:34]}  Na5 {[%clk 0:01:16]} 15. Ne5 {[%clk 0:02:18]}  Nc4 {[%clk 0:01:13]} 16. Bxc4 {[%clk 0:02:18]}  dxc4 {[%clk 0:01:09]} 17. Rae1 {[%clk 0:02:16]}  Bc6 {[%clk 0:01:08]} 18. Rg3 {[%clk 0:02:15]}  g6 {[%clk 0:00:28]} 19. h4 {[%clk 0:01:34]}  Rc7 {[%clk 0:00:20]} 20. Qg5 {[%clk 0:01:28]}  Qd8 {[%clk 0:00:18]} 21. h5 {[%clk 0:01:24]}  Nd5 {[%clk 0:00:17]} 22. Qh6 {[%clk 0:01:22]}  Ne7 {[%clk 0:00:14]} 23. hxg6 {[%clk 0:01:19]}  fxg6 {[%clk 0:00:12]} 24. Qh3 {[%clk 0:00:33]}  Nf5 {[%clk 0:00:11]} 25. Nxg6 {[%clk 0:00:33]}  Nxg3 {[%clk 0:00:07]} 26. Nxf8 {[%clk 0:00:33]}  Qxf8 {[%clk 0:00:04]} 27. Qxe6+ {[%clk 0:00:30]}  Qf7 {[%clk 0:00:04]} 28. fxg3 {[%clk 0:00:27]}  Qxe6 {[%clk 0:00:03]} 29. Rxe6 {[%clk 0:00:28]}  Bb7 {[%clk 0:00:03]} 30. d5 {[%clk 0:00:24]}  Rd7 {[%clk 0:00:03]} 31. Re5 {[%clk 0:00:24]}  Kf7 {[%clk 0:00:03]} 32. g4 {[%clk 0:00:24]}  Kf6 {[%clk 0:00:03]} 33. Rf5+ {[%clk 0:00:25]}  Kg6 {[%clk 0:00:04]} 34. Kf2 {[%clk 0:00:25]}  Rd6 {[%clk 0:00:05]} 35. Ke3 {[%clk 0:00:24]}  Bc8 {[%clk 0:00:05]} 36. Rf4 {[%clk 0:00:23]}  h6 {[%clk 0:00:04]} 37. Kd4 {[%clk 0:00:23]}  Bb7 {[%clk 0:00:03]} 38. g3 {[%clk 0:00:20]}  Rd7 {[%clk 0:00:03]} 39. Kc5 {[%clk 0:00:20]}  Rc7+ {[%clk 0:00:02]} 40. Kb6 {[%clk 0:00:20]}  Rd7 {[%clk 0:00:02]} 41. Kc5 {[%clk 0:00:19]}  Rc7+ {[%clk 0:00:02]} 42. Kd6 {[%clk 0:00:20]}  Rg7 {[%clk 0:00:02]} 43. Ne4 {[%clk 0:00:17]}  Rh7 {[%clk 0:00:01]} 44. Rf6+ {[%clk 0:00:17]}  Kg7 {[%clk 0:00:01]} 45. Ke5 {[%clk 0:00:18]} 1-0


[Site "https://www.chess.com"]

[Event "Titled Tuesday Blitz January 11 2022"]
[White "Jovic, Stanoje"]
[Black "Yoo, Christopher Woojin"]
[WhiteFideId "905020"]
[BlackFideId "30909694"]
[WhiteElo "2286"]
[BlackElo "2105"]
[Result "0-1"]
[Round "01"]
[TimeControl "180+1"]
[Date "2022.01.11"]
[WhiteClock "0:00:04"]
[BlackClock "0:01:12"]

1. c4 {[%clk 0:03:00]}  e6 {[%clk 0:02:59]} 2. g3 {[%clk 0:03:00]}  d5 {[%clk 0:02:59]} 3. Bg2 {[%clk 0:03:00]}  Nf6 {[%clk 0:03:00]} 4. Nf3 {[%clk 0:03:00]}  Be7 {[%clk 0:02:59]} 5. O-O {[%clk 0:02:59]}  O-O {[%clk 0:02:59]} 6. d4 {[%clk 0:03:00]}  dxc4 {[%clk 0:02:59]} 7. Ne5 {[%clk 0:02:59]}  Nd5 {[%clk 0:02:42]} 8. Nxc4 {[%clk 0:02:55]}  b5 {[%clk 0:02:41]} 9. Ne5 {[%clk 0:02:47]}  Bb7 {[%clk 0:02:41]} 10. e4 {[%clk 0:02:40]}  Nf6 {[%clk 0:02:35]} 11. Re1 {[%clk 0:02:38]}  c5 {[%clk 0:02:29]} 12. dxc5 {[%clk 0:02:28]}  Qxd1 {[%clk 0:02:28]} 13. Rxd1 {[%clk 0:02:28]}  Bxc5 {[%clk 0:02:29]} 14. Nc3 {[%clk 0:02:20]}  b4 {[%clk 0:02:18]} 15. Na4 {[%clk 0:02:18]}  Be7 {[%clk 0:02:11]} 16. f3 {[%clk 0:02:14]}  Nc6 {[%clk 0:02:04]} 17. Nd7 {[%clk 0:02:03]}  Rfd8 {[%clk 0:01:57]} 18. Nxf6+ {[%clk 0:01:59]}  Bxf6 {[%clk 0:01:58]} 19. Be3 {[%clk 0:01:57]}  Nd4 {[%clk 0:01:55]} 20. Bf2 {[%clk 0:01:24]}  Bc6 {[%clk 0:01:43]} 21. Nc5 {[%clk 0:01:20]}  Ne2+ {[%clk 0:01:42]} 22. Kf1 {[%clk 0:01:18]}  Bb5 {[%clk 0:01:41]} 23. e5 {[%clk 0:00:41]}  Bxe5 {[%clk 0:01:31]} 24. Nd3 {[%clk 0:00:10]}  Rxd3 {[%clk 0:01:16]} 25. f4 {[%clk 0:00:04]}  Rxd1+ {[%clk 0:01:12]} 0-1


[Site "https://www.chess.com"]

[Event "Titled Tuesday Blitz January 11 2022"]
[White "Karas, Marek"]
[Black "Cunjalo, Faris"]
[WhiteFideId "14928558"]
[BlackFideId "14410710"]
[WhiteElo "2270"]
[BlackElo "2263"]
[Result "0-1"]
[Round "01"]
[TimeControl "180+1"]
[Date "2022.01.11"]
[WhiteClock "0:00:57"]
[BlackClock "0:00:45"]

1. d4 {[%clk 0:02:59]}  Nf6 {[%clk 0:02:59]} 2. Bf4 {[%clk 0:02:59]}  e6 {[%clk 0:02:59]} 3. e3 {[%clk 0:03:00]}  d5 {[%clk 0:02:57]} 4. Nf3 {[%clk 0:03:00]}  Bd6 {[%clk 0:02:56]} 5. Bg3 {[%clk 0:02:54]}  O-O {[%clk 0:02:55]} 6. Bd3 {[%clk 0:02:53]}  c5 {[%clk 0:02:55]} 7. c3 {[%clk 0:02:51]}  Qc7 {[%clk 0:02:56]} 8. dxc5 {[%clk 0:02:48]}  Qxc5 {[%clk 0:02:56]} 9. Nbd2 {[%clk 0:02:47]}  Nbd7 {[%clk 0:02:56]} 10. e4 {[%clk 0:02:39]}  dxe4 {[%clk 0:02:49]} 11. Nxe4 {[%clk 0:02:38]}  Nxe4 {[%clk 0:02:49]} 12. Bxe4 {[%clk 0:02:39]}  Bxg3 {[%clk 0:02:48]} 13. hxg3 {[%clk 0:02:37]}  Nf6 {[%clk 0:02:46]} 14. Bc2 {[%clk 0:02:36]}  h6 {[%clk 0:02:44]} 15. Qd3 {[%clk 0:02:30]}  e5 {[%clk 0:02:37]} 16. Nd2 {[%clk 0:02:24]}  Be6 {[%clk 0:02:15]} 17. Ne4 {[%clk 0:02:23]}  Nxe4 {[%clk 0:02:15]} 18. Qxe4 {[%clk 0:02:15]}  f5 {[%clk 0:02:15]} 19. Qe3 {[%clk 0:02:06]}  Qxe3+ {[%clk 0:02:07]} 20. fxe3 {[%clk 0:02:07]}  Kf7 {[%clk 0:01:55]} 21. Kf2 {[%clk 0:01:58]}  Ke7 {[%clk 0:01:49]} 22. a3 {[%clk 0:01:56]}  Rac8 {[%clk 0:01:32]} 23. Rad1 {[%clk 0:01:53]}  Rc6 {[%clk 0:01:30]} 24. Rd2 {[%clk 0:01:44]}  Rb6 {[%clk 0:01:25]} 25. Bb1 {[%clk 0:01:37]}  Rd8 {[%clk 0:01:14]} 26. Rhd1 {[%clk 0:01:34]}  Rxb2 {[%clk 0:01:07]} 27. Rxb2 {[%clk 0:01:32]}  Rxd1 {[%clk 0:01:08]} 28. Rxb7+ {[%clk 0:01:32]}  Kf6 {[%clk 0:01:07]} 29. Ke2 {[%clk 0:01:11]}  Rg1 {[%clk 0:00:58]} 30. Kf2 {[%clk 0:01:10]}  Rxg2+ {[%clk 0:00:58]} 31. Kxg2 {[%clk 0:01:09]}  Bd5+ {[%clk 0:00:58]} 32. Kf2 {[%clk 0:01:09]}  Bxb7 {[%clk 0:00:59]} 33. Ba2 {[%clk 0:01:09]}  g5 {[%clk 0:00:56]} 34. c4 {[%clk 0:01:08]}  h5 {[%clk 0:00:46]} 35. c5 {[%clk 0:01:07]}  h4 {[%clk 0:00:47]} 36. gxh4 {[%clk 0:01:02]}  gxh4 {[%clk 0:00:47]} 37. Bb3 {[%clk 0:01:00]}  Bc6 {[%clk 0:00:47]} 38. Bc4 {[%clk 0:00:58]}  f4 {[%clk 0:00:44]} 39. exf4 {[%clk 0:00:58]}  exf4 {[%clk 0:00:45]} 40. Bf1 {[%clk 0:00:57]}  Ke5 {[%clk 0:00:45]} 0-1


[Site "https://www.chess.com"]

[Event "Titled Tuesday Blitz January 11 2022"]
[White "Lehtosaari, Mauri"]
[Black "Chigaev, Maksim"]
[WhiteFideId "501999"]
[BlackFideId "4108116"]
[WhiteElo "2482"]
[BlackElo "2502"]
[Result "0-1"]
[Round "01"]
[TimeControl "180+1"]
[Date "2022.01.11"]
[WhiteClock "0:01:34"]
[BlackClock "0:02:12"]

1. d4 {[%clk 0:02:59]}  Nf6 {[%clk 0:03:00]} 2. Nf3 {[%clk 0:02:59]}  d5 {[%clk 0:02:59]} 3. Bg5 {[%clk 0:02:58]}  Bf5 {[%clk 0:02:55]} 4. Nbd2 {[%clk 0:02:58]}  e6 {[%clk 0:02:56]} 5. e3 {[%clk 0:02:58]}  Nbd7 {[%clk 0:02:54]} 6. c4 {[%clk 0:02:59]}  c6 {[%clk 0:02:54]} 7. Qb3 {[%clk 0:02:58]}  Qb6 {[%clk 0:02:51]} 8. c5 {[%clk 0:02:59]}  Qc7 {[%clk 0:02:51]} 9. h3 {[%clk 0:02:58]}  h6 {[%clk 0:02:50]} 10. Bf4 {[%clk 0:02:58]}  Qc8 {[%clk 0:02:51]} 11. Be2 {[%clk 0:02:58]}  Be7 {[%clk 0:02:51]} 12. Qd1 {[%clk 0:02:55]}  O-O {[%clk 0:02:47]} 13. O-O {[%clk 0:02:54]}  Ne4 {[%clk 0:02:36]} 14. Nxe4 {[%clk 0:02:49]}  Bxe4 {[%clk 0:02:37]} 15. b4 {[%clk 0:02:48]}  a6 {[%clk 0:02:38]} 16. a4 {[%clk 0:02:48]}  Re8 {[%clk 0:02:34]} 17. Ne5 {[%clk 0:02:43]}  Bf6 {[%clk 0:02:28]} 18. Nxd7 {[%clk 0:02:41]}  Qxd7 {[%clk 0:02:29]} 19. Qb3 {[%clk 0:02:33]}  e5 {[%clk 0:02:25]} 20. dxe5 {[%clk 0:02:14]}  Bxe5 {[%clk 0:02:26]} 21. Rfe1 {[%clk 0:01:52]}  Bxa1 {[%clk 0:02:23]} 22. Rxa1 {[%clk 0:01:49]}  Qe6 {[%clk 0:02:12]} 23. Rd1 {[%clk 0:01:34]}  Qg6 {[%clk 0:02:12]} 0-1


[Site "https://www.chess.com"]

[Event "Titled Tuesday Blitz January 11 2022"]
[White "Lenderman, Aleksandr"]
[Black "Bethke, Richard"]
[WhiteFideId "2021285"]
[BlackFideId "12959243"]
[WhiteElo "2651"]
[BlackElo "2450"]
[Result "1-0"]
[Round "01"]
[TimeControl "180+1"]
[Date "2022.01.11"]
[WhiteClock "0:01:25"]
[BlackClock "0:00:18"]

1. Nf3 {[%clk 0:03:00]}  Nf6 {[%clk 0:02:58]} 2. c4 {[%clk 0:03:00]}  e6 {[%clk 0:02:57]} 3. Nc3 {[%clk 0:02:59]}  d5 {[%clk 0:02:58]} 4. e3 {[%clk 0:02:59]}  Be7 {[%clk 0:02:57]} 5. b3 {[%clk 0:02:58]}  O-O {[%clk 0:02:57]} 6. Bb2 {[%clk 0:02:58]}  b6 {[%clk 0:02:57]} 7. cxd5 {[%clk 0:02:57]}  Nxd5 {[%clk 0:02:58]} 8. Nxd5 {[%clk 0:02:56]}  exd5 {[%clk 0:02:59]} 9. Be2 {[%clk 0:02:55]}  Bb7 {[%clk 0:02:59]} 10. O-O {[%clk 0:02:55]}  Nd7 {[%clk 0:02:59]} 11. d4 {[%clk 0:02:54]}  Nf6 {[%clk 0:02:56]} 12. Bd3 {[%clk 0:02:52]}  Ne4 {[%clk 0:02:55]} 13. Qe2 {[%clk 0:02:52]}  Bf6 {[%clk 0:02:54]} 14. Rfd1 {[%clk 0:02:51]}  Qe7 {[%clk 0:02:48]} 15. Rac1 {[%clk 0:02:48]}  Rac8 {[%clk 0:02:46]} 16. Ba6 {[%clk 0:02:45]}  c6 {[%clk 0:02:34]} 17. Rc2 {[%clk 0:02:33]}  Rfd8 {[%clk 0:01:43]} 18. Rdc1 {[%clk 0:02:32]}  g6 {[%clk 0:01:39]} 19. h3 {[%clk 0:02:27]}  h5 {[%clk 0:01:37]} 20. Nd2 {[%clk 0:02:13]}  Nxd2 {[%clk 0:01:32]} 21. Rxd2 {[%clk 0:02:13]}  c5 {[%clk 0:01:20]} 22. dxc5 {[%clk 0:02:05]}  Rxc5 {[%clk 0:01:14]} 23. Rxc5 {[%clk 0:02:00]}  bxc5 {[%clk 0:01:14]} 24. Bxf6 {[%clk 0:01:59]}  Qxf6 {[%clk 0:01:10]} 25. Bxb7 {[%clk 0:01:59]}  d4 {[%clk 0:01:11]} 26. exd4 {[%clk 0:01:57]}  cxd4 {[%clk 0:01:12]} 27. Bf3 {[%clk 0:01:56]}  Rc8 {[%clk 0:01:07]} 28. Qd1 {[%clk 0:01:56]}  Rd8 {[%clk 0:01:05]} 29. Rd3 {[%clk 0:01:54]}  h4 {[%clk 0:01:04]} 30. b4 {[%clk 0:01:53]}  Qb6 {[%clk 0:01:03]} 31. a3 {[%clk 0:01:53]}  Kg7 {[%clk 0:01:02]} 32. Qd2 {[%clk 0:01:53]}  f6 {[%clk 0:01:01]} 33. a4 {[%clk 0:01:52]}  Qd6 {[%clk 0:00:55]} 34. b5 {[%clk 0:01:50]}  Qe5 {[%clk 0:00:53]} 35. Bc6 {[%clk 0:01:49]}  g5 {[%clk 0:00:48]} 36. Qd1 {[%clk 0:01:45]}  Kg6 {[%clk 0:00:32]} 37. a5 {[%clk 0:01:42]}  a6 {[%clk 0:00:29]} 38. bxa6 {[%clk 0:01:40]}  Qxa5 {[%clk 0:00:27]} 39. Rxd4 {[%clk 0:01:35]}  Rc8 {[%clk 0:00:24]} 40. Be4+ {[%clk 0:01:33]}  Kh6 {[%clk 0:00:19]} 41. Rd7 {[%clk 0:01:32]}  Rc7 {[%clk 0:00:19]} 42. Rxc7 {[%clk 0:01:30]}  Qxc7 {[%clk 0:00:20]} 43. Bb1 {[%clk 0:01:27]}  Qb6 {[%clk 0:00:20]} 44. Qd3 {[%clk 0:01:26]}  f5 {[%clk 0:00:18]} 45. Qxf5 {[%clk 0:01:25]} 1-0


[Site "https://www.chess.com"]

[Event "Titled Tuesday Blitz January 11 2022"]
[White "Levine, Joseph"]
[Black "Kravtsiv, Martyn"]
[WhiteFideId "30940346"]
[BlackFideId "14113147"]
[WhiteElo "1802"]
[BlackElo "2694"]
[Result "0-1"]
[Round "01"]
[TimeControl "180+1"]
[Date "2022.01.11"]
[WhiteClock "0:01:03"]
[BlackClock "0:01:21"]

1. e4 {[%clk 0:03:00]}  e5 {[%clk 0:02:59]} 2. Nf3 {[%clk 0:03:00]}  Nc6 {[%clk 0:02:58]} 3. Bc4 {[%clk 0:03:01]}  Nf6 {[%clk 0:02:58]} 4. d3 {[%clk 0:03:01]}  Bc5 {[%clk 0:02:56]} 5. c3 {[%clk 0:03:01]}  O-O {[%clk 0:02:56]} 6. O-O {[%clk 0:02:58]}  d5 {[%clk 0:02:55]} 7. exd5 {[%clk 0:02:58]}  Nxd5 {[%clk 0:02:55]} 8. Nbd2 {[%clk 0:02:58]}  Nb6 {[%clk 0:02:40]} 9. Ne4 {[%clk 0:02:40]}  Nxc4 {[%clk 0:02:37]} 10. Nxc5 {[%clk 0:02:39]}  Nd6 {[%clk 0:02:36]} 11. Ne4 {[%clk 0:02:35]}  Bg4 {[%clk 0:02:28]} 12. h3 {[%clk 0:02:29]}  Bh5 {[%clk 0:02:17]} 13. Ng3 {[%clk 0:02:27]}  Bg6 {[%clk 0:02:16]} 14. Re1 {[%clk 0:02:28]}  Re8 {[%clk 0:02:12]} 15. h4 {[%clk 0:02:19]}  f6 {[%clk 0:02:07]} 16. h5 {[%clk 0:02:13]}  Bf7 {[%clk 0:02:06]} 17. h6 {[%clk 0:02:12]}  g6 {[%clk 0:02:05]} 18. Ne4 {[%clk 0:01:59]}  Nxe4 {[%clk 0:02:01]} 19. dxe4 {[%clk 0:01:59]}  Qxd1 {[%clk 0:01:55]} 20. Rxd1 {[%clk 0:02:00]}  Rad8 {[%clk 0:01:55]} 21. Be3 {[%clk 0:01:41]}  a6 {[%clk 0:01:48]} 22. b3 {[%clk 0:01:39]}  Be6 {[%clk 0:01:47]} 23. Nh2 {[%clk 0:01:28]}  g5 {[%clk 0:01:26]} 24. g3 {[%clk 0:01:23]}  Bc8 {[%clk 0:01:24]} 25. f4 {[%clk 0:01:14]}  exf4 {[%clk 0:01:22]} 26. gxf4 {[%clk 0:01:14]}  Rxe4 {[%clk 0:01:22]} 27. Rxd8+ {[%clk 0:01:10]}  Nxd8 {[%clk 0:01:23]} 28. Ng4 {[%clk 0:01:03]}  Bxg4 {[%clk 0:01:21]} 0-1


[Site "https://www.chess.com"]

[Event "Titled Tuesday Blitz January 11 2022"]
[White "Martinez Alcantara, Jose Eduardo"]
[Black "Manukian, Artak"]
[WhiteFideId "3805662"]
[BlackFideId "13301373"]
[WhiteElo "2690"]
[BlackElo "2467"]
[Result "1/2-1/2"]
[Round "01"]
[TimeControl "180+1"]
[Date "2022.01.11"]
[WhiteClock "0:02:08"]
[BlackClock "0:00:05"]

1. e4 {[%clk 0:02:59]}  c6 {[%clk 0:02:51]} 2. d4 {[%clk 0:02:59]}  d5 {[%clk 0:02:49]} 3. e5 {[%clk 0:02:59]}  Bf5 {[%clk 0:02:49]} 4. h4 {[%clk 0:02:59]}  h5 {[%clk 0:02:46]} 5. Bd3 {[%clk 0:03:00]}  Bxd3 {[%clk 0:02:43]} 6. Qxd3 {[%clk 0:03:01]}  e6 {[%clk 0:02:43]} 7. Nf3 {[%clk 0:03:00]}  c5 {[%clk 0:02:40]} 8. Bg5 {[%clk 0:02:58]}  Qb6 {[%clk 0:02:33]} 9. Nc3 {[%clk 0:02:46]}  c4 {[%clk 0:02:26]} 10. Qd2 {[%clk 0:02:46]}  Nc6 {[%clk 0:02:25]} 11. O-O {[%clk 0:02:45]}  Nh6 {[%clk 0:02:19]} 12. Ne2 {[%clk 0:02:42]}  Ng4 {[%clk 0:02:08]} 13. b3 {[%clk 0:02:41]}  cxb3 {[%clk 0:02:03]} 14. axb3 {[%clk 0:02:40]}  f6 {[%clk 0:01:47]} 15. Bf4 {[%clk 0:02:38]}  Be7 {[%clk 0:01:36]} 16. c4 {[%clk 0:02:36]}  Rd8 {[%clk 0:01:22]} 17. c5 {[%clk 0:02:33]}  Qb5 {[%clk 0:01:06]} 18. exf6 {[%clk 0:02:27]}  Bxf6 {[%clk 0:01:02]} 19. Ng5 {[%clk 0:02:25]}  Bxg5 {[%clk 0:00:49]} 20. Bxg5 {[%clk 0:02:24]}  Rd7 {[%clk 0:00:42]} 21. Nf4 {[%clk 0:02:21]}  Qb4 {[%clk 0:00:36]} 22. Qxb4 {[%clk 0:02:19]}  Nxb4 {[%clk 0:00:36]} 23. Rae1 {[%clk 0:02:18]}  Kf7 {[%clk 0:00:35]} 24. Rxe6 {[%clk 0:02:16]}  Nd3 {[%clk 0:00:31]} 25. Re2 {[%clk 0:02:14]}  Nxf4 {[%clk 0:00:31]} 26. Bxf4 {[%clk 0:02:15]}  Re8 {[%clk 0:00:31]} 27. Rxe8 {[%clk 0:02:13]}  Kxe8 {[%clk 0:00:31]} 28. b4 {[%clk 0:02:13]}  Re7 {[%clk 0:00:30]} 29. b5 {[%clk 0:02:12]}  Re4 {[%clk 0:00:28]} 30. Bb8 {[%clk 0:02:11]}  Rxd4 {[%clk 0:00:28]} 31. Bxa7 {[%clk 0:02:11]}  Rc4 {[%clk 0:00:21]} 32. Rd1 {[%clk 0:02:09]}  d4 {[%clk 0:00:21]} 33. c6 {[%clk 0:02:07]}  bxc6 {[%clk 0:00:20]} 34. bxc6 {[%clk 0:02:06]}  Rxc6 {[%clk 0:00:21]} 35. Bxd4 {[%clk 0:02:06]}  Rd6 {[%clk 0:00:20]} 36. Re1+ {[%clk 0:02:06]}  Kf7 {[%clk 0:00:20]} 37. Bc5 {[%clk 0:02:06]}  Re6 {[%clk 0:00:20]} 38. Rd1 {[%clk 0:02:04]}  Rc6 {[%clk 0:00:18]} 39. Bd4 {[%clk 0:02:03]}  Rd6 {[%clk 0:00:18]} 40. Rd2 {[%clk 0:02:01]}  Ne5 {[%clk 0:00:17]} 41. Bc3 {[%clk 0:02:01]}  Rxd2 {[%clk 0:00:17]} 42. Bxd2 {[%clk 0:02:02]}  Ng6 {[%clk 0:00:17]} 43. Bg5 {[%clk 0:02:02]}  Ke6 {[%clk 0:00:17]} 44. Kh2 {[%clk 0:02:03]}  Kf5 {[%clk 0:00:17]} 45. Kg3 {[%clk 0:02:04]}  Ne5 {[%clk 0:00:17]} 46. f3 {[%clk 0:02:04]}  g6 {[%clk 0:00:17]} 47. Bd2 {[%clk 0:02:04]}  Nd3 {[%clk 0:00:17]} 48. Be3 {[%clk 0:02:04]}  Ne5 {[%clk 0:00:17]} 49. Kf2 {[%clk 0:02:05]}  Nd3+ {[%clk 0:00:18]} 50. Ke2 {[%clk 0:02:05]}  Ne5 {[%clk 0:00:16]} 51. Bd4 {[%clk 0:02:06]}  Nc6 {[%clk 0:00:16]} 52. Bc3 {[%clk 0:02:05]}  Ne7 {[%clk 0:00:15]} 53. Bd2 {[%clk 0:02:04]}  Nd5 {[%clk 0:00:15]} 54. g3 {[%clk 0:02:05]}  Nf6 {[%clk 0:00:15]} 55. Kd3 {[%clk 0:02:05]}  Nd5 {[%clk 0:00:15]} 56. Bg5 {[%clk 0:02:06]}  Nc7 {[%clk 0:00:15]} 57. Be3 {[%clk 0:02:06]}  Nd5 {[%clk 0:00:15]} 58. Bd2 {[%clk 0:02:06]}  Nf6 {[%clk 0:00:14]} 59. Kd4 {[%clk 0:02:06]}  Ne8 {[%clk 0:00:13]} 60. Bf4 {[%clk 0:02:06]}  Ng7 {[%clk 0:00:13]} 61. Kd5 {[%clk 0:02:06]}  Ne6 {[%clk 0:00:13]} 62. Be3 {[%clk 0:02:06]}  Nc7+ {[%clk 0:00:12]} 63. Kd6 {[%clk 0:02:06]}  Nb5+ {[%clk 0:00:12]} 64. Ke7 {[%clk 0:02:07]}  Nc3 {[%clk 0:00:12]} 65. Kd6 {[%clk 0:02:07]}  Nb5+ {[%clk 0:00:10]} 66. Kc6 {[%clk 0:02:07]}  Nc3 {[%clk 0:00:10]} 67. Kc5 {[%clk 0:02:08]}  Ne2 {[%clk 0:00:10]} 68. Bf2 {[%clk 0:02:07]}  Nc1 {[%clk 0:00:07]} 69. Kc4 {[%clk 0:02:07]}  Ne2 {[%clk 0:00:07]} 70. Be1 {[%clk 0:02:07]}  Ng1 {[%clk 0:00:07]} 71. f4 {[%clk 0:02:04]}  Kg4 {[%clk 0:00:07]} 72. Kd5 {[%clk 0:02:04]}  Ne2 {[%clk 0:00:07]} 73. Ke6 {[%clk 0:02:04]}  Nxg3 {[%clk 0:00:07]} 74. Kf7 {[%clk 0:02:05]}  Nf5 {[%clk 0:00:05]} 75. Kxg6 {[%clk 0:02:06]}  Nxh4+ {[%clk 0:00:05]} 76. Bxh4 {[%clk 0:02:07]}  Kxf4 {[%clk 0:00:05]} 77. Kxh5 {[%clk 0:02:08]} 1/2-1/2


[Site "https://www.chess.com"]

[Event "Titled Tuesday Blitz January 11 2022"]
[White "Michaelides, Konstantinos"]
[Black "Guseinov, Gadir"]
[WhiteFideId "5901871"]
[BlackFideId "13401378"]
[WhiteElo "2223"]
[BlackElo "2581"]
[Result "0-1"]
[Round "01"]
[TimeControl "180+1"]
[Date "2022.01.11"]
[WhiteClock "0:00:42"]
[BlackClock "0:01:59"]

1. d4 {[%clk 0:03:00]}  Nf6 {[%clk 0:02:59]} 2. Nf3 {[%clk 0:02:59]}  g6 {[%clk 0:02:59]} 3. Bg5 {[%clk 0:03:00]}  Bg7 {[%clk 0:03:00]} 4. Nbd2 {[%clk 0:03:00]}  d6 {[%clk 0:03:00]} 5. c3 {[%clk 0:02:59]}  O-O {[%clk 0:03:01]} 6. e4 {[%clk 0:02:59]}  Nbd7 {[%clk 0:02:58]} 7. Bc4 {[%clk 0:02:59]}  e5 {[%clk 0:02:58]} 8. dxe5 {[%clk 0:02:59]}  dxe5 {[%clk 0:02:57]} 9. O-O {[%clk 0:03:00]}  Qe7 {[%clk 0:02:57]} 10. Re1 {[%clk 0:03:00]}  Nc5 {[%clk 0:02:58]} 11. Qc2 {[%clk 0:02:59]}  a5 {[%clk 0:02:53]} 12. a4 {[%clk 0:02:56]}  b6 {[%clk 0:02:53]} 13. Rad1 {[%clk 0:02:54]}  Bb7 {[%clk 0:02:53]} 14. Bd5 {[%clk 0:02:40]}  h6 {[%clk 0:02:44]} 15. Bxb7 {[%clk 0:02:34]}  Nxb7 {[%clk 0:02:45]} 16. Bxf6 {[%clk 0:02:30]}  Bxf6 {[%clk 0:02:44]} 17. Nc4 {[%clk 0:02:31]}  Nc5 {[%clk 0:02:44]} 18. Nfd2 {[%clk 0:02:29]}  Bg5 {[%clk 0:02:42]} 19. Ne3 {[%clk 0:02:23]}  Bxe3 {[%clk 0:02:41]} 20. Rxe3 {[%clk 0:02:24]}  Rad8 {[%clk 0:02:41]} 21. Ree1 {[%clk 0:02:13]}  Qe6 {[%clk 0:02:32]} 22. Nf1 {[%clk 0:02:03]}  Qc4 {[%clk 0:02:28]} 23. Ra1 {[%clk 0:01:30]}  Qd3 {[%clk 0:02:21]} 24. Qxd3 {[%clk 0:01:23]}  Rxd3 {[%clk 0:02:19]} 25. f3 {[%clk 0:01:18]}  Rfd8 {[%clk 0:02:16]} 26. Kf2 {[%clk 0:01:18]}  Kg7 {[%clk 0:02:14]} 27. Ke2 {[%clk 0:01:09]}  f5 {[%clk 0:02:08]} 28. b4 {[%clk 0:01:02]}  Nb3 {[%clk 0:02:05]} 29. Ra2 {[%clk 0:00:43]}  Rxc3 {[%clk 0:02:01]} 30. bxa5 {[%clk 0:00:42]}  Nc1+ {[%clk 0:01:59]} 0-1


[Site "https://www.chess.com"]